Cogmind - Beta 13 @@@ ROGUE MODE // 2024.04.01 @ 02:23:17 Player: Olafz Result: Destroyed by G-34 Mercenary with Small Laser Performance ------------- Evolutions (0) 0 Regions Visited (1) 200 Robots Destroyed (13) 65 Value Destroyed (311) 311 Prototype IDs (0) 0 Alien Tech Used (0) 0 Bonus (0) 0 TOTAL SCORE: 576 Bonus ------- None Cogmind --------- Core Integrity 0/250 Matter 300/300 Energy 100/100 System Corruption 1% Temperature Cool (6) Movement Core (350) Ox6 Location -10/Materials Parts ------- > --- POWER (1) -------- (None) > --- PROPULSION (2) --- (None) > --- UTILITY (2) ------ Large Storage Unit > --- WEAPON (2) ------- (None) > --- INVENTORY (15) --- Large Storage Unit Peak State ------------ > --- POWER ------------ Ion Engine > --- PROPULSION ------- Wheel Wheel > --- UTILITY ---------- Large Storage Unit > --- WEAPON ----------- EM Pulse Gun Grenade Launcher > --- INVENTORY -------- Large Storage Unit [Rating: 6] Favorites ----------- Power Ion Engine Engine Ion Engine Propulsion Wheel Wheel Wheel Flight Unit Flight Unit Utility Large Storage Unit Storage Large Storage Unit Protection Light Armor Plating Weapon EM Pulse Gun Energy Gun EM Pulse Gun Launcher Grenade Launcher Build | -11 -10 ------- Run | Yrd Mat Slots Evolved . | . . Power . | . . Propulsion . | . . Utility . | . . Weapon . | . . Parts Attached 18 | 4 14 Power 3 | 1 2 Engine 3 | 1 2 Core . | . . Reactor . | . . Propulsion 7 | 2 5 Treads . | . . Leg . | . . Wheel 4 | 2 2 Hover . | . . Flight 3 | . 3 Utility 3 | . 3 Device . | . . Storage 2 | . 2 Processor . | . . Hackware . | . . Protection 1 | . 1 Artifact . | . . Weapon 5 | 1 4 Energy Gun 3 | 1 2 Energy Cannon . | . . Ballistic Gun . | . . Ballistic Cannon . | . . Launcher 2 | . 2 Special Weapon . | . . Impact Weapon . | . . Slashing Weapon . | . . Piercing Weapon . | . . Special Melee Weapon . | . . Unidentified Prototypes . | . . Corrupted Parts 1 | . 1 System Corruption 1 | . 1 Parts Lost 10 | . 10 Power 2 | . 2 Propulsion 4 | . 4 Utility 1 | . 1 Weapon 3 | . 3 Highest Loss Streak 5 | . 5 To Critical Strikes . | . . Average Slot Usage (%) 53 | . 53 Engine 5 | . 5 Wheel 12 | . 12 Flight 9 | . 9 Storage 11 | . 11 Protection 2 | . 2 Energy Gun 8 | . 8 Launcher 4 | . 4 Naked Turns . | . . Heaviest Build 30 | 7 30 Greatest Support 20 | 20 20 Greatest Overweight (x) 7 | 2 7 Average Overweight (x) . | . . Largest Inventory Capacity 15 | 5 15 Average Capacity 11 | 5 12 Most Carried 5 | . 5 Average Carried 2 | . 2 Final Capacity 15 | 5 15 Final Carried 1 | . 1 Class Distribution -------------------- 100% | Mutant Dominant Class ---------------- Mutant | -10/Materials Resources | -11 -10 ----------- Run | Yrd Mat Matter Collected 445 | 210 235 Remotely . | . . Salvage Created 350 | . 350 Parts 18 | . 18 Haulers Intercepted . | . . Recyclers Shooed 1 | . 1 Parts Field Recycled . | . . Retrieved Matter . | . . Parts Self-Destructed . | . . Prevented . | . . Kills | -11 -10 ------- Run | Yrd Mat Combat Hostiles Destroyed 9 | . 9 Guns 5 | . 5 AOE 3 | . 3 Classes Destroyed 5 | . 5 Worker 2 | . 2 Recycler 1 | . 1 Watcher 1 | . 1 Swarmer 3 | . 3 Grunt 6 | . 6 Best Kill Streak 5 | . 5 Combat Bots Only 5 | . 5 Max Kills in Single Turn 2 | . 2 Gunslinging . | . . Exploded 1 | . 1 Melee . | . . Uniques/NPCs Destroyed . | . . Combat | -11 -10 -------- Run | Yrd Mat Hostile Shots Fired 104 | . 104 Missed 35 | . 35 Damage Taken 824 | . 824 Core 251 | . 251 Absorbed by Shields . | . . Core Remaining (%) 100 | 100 . Volleys Fired 48 | . 48 Largest 2 | . 2 Hottest 70 | . 70 Shots Fired 51 | . 51 Gun 40 | . 40 Cannon . | . . Launcher 11 | . 11 Special . | . . Kinetic . | . . Thermal 8 | . 8 Explosive 11 | . 11 Electromagnetic 32 | . 32 Robot Hit Streak 9 | . 9 Robot Miss Streak 3 | . 3 Penetration Max . | . . Secondary Targets . | . . Shots Hit Robots 36 | . 36 Core Hits 24 | . 24 Critical Kills . | . . Critical Parts Destroyed . | . . Critical Strikes . | . . Melee Attacks . | . . Impact . | . . Slashing . | . . Piercing . | . . Sneak Attacks . | . . Combat Hostiles . | . . Follow-up Attacks . | . . Damage Inflicted 1026 | . 1026 Guns 392 | . 392 Cannons . | . . Explosions 628 | . 628 Melee . | . . Ramming 6 | . 6 Kinetic . | . . Thermal 225 | . 225 Explosive 470 | . 470 Electromagnetic 325 | . 325 Impact . | . . Slashing . | . . Piercing . | . . Highest Corruption 1 | . 1 Average Corruption 1 | . 1 Corruption Purged . | . . Corruption Blocked . | . . Effects 2 | . 2 Matter Fused 1 | . 1 Energy Discharges 1 | . 1 Overload Shots . | . . Overflow Damage 42 | . 42 Projectiles . | . . Explosions 42 | . 42 Melee . | . . Knockbacks . | . . Impact . | . . Kinetic . | . . Secondary . | . . Self-Inflicted Damage 47 | . 47 Shots 2 | . 2 Rammed 10 | . 10 Targets Rammed 10 | . 10 Kicked . | . . Crushed . | . . Highest Temperature 51 | . 51 Average Temperature 19 | . 19 Received Heat Transfer 420 | . 420 Siege Activations . | . . Robots Corrupted 1 | . 1 Combat Hostiles 1 | . 1 Parts Fried . | . . Impact Corruptions . | . . Robots Melted . | . . Combat Hostiles . | . . Parts Melted . | . . Heat Transferred 350 | . 350 Parts Sabotaged . | . . Parts Stolen . | . . Parts Stripped . | . . Power Chain Reactions 2 | . 2 Alert | -11 -10 ------- Run | Yrd Mat Peak Influence 345 | . 345 Initial . | . . Average 186 | . 211 Maximum Alert Level 1 | . 1 Low Security (%) 35 | 100 27 Level 1 64 | . 72 Level 2 . | . . Level 3 . | . . Level 4 . | . . Level 5 . | . . High Security . | . . Max Security . | . . Squads Dispatched 3 | . 3 Investigation 3 | . 3 Extermination . | . . Reinforcement . | . . Assault . | . . Garrison . | . . Intercept . | . . Searches Triggered . | . . Construction Impeded . | . . Haulers Reinforced . | . . Active Scanning Responses . | . . Cargo Convoy Interrupts . | . . Stealth | -11 -10 --------- Run | Yrd Mat Distress Signals 1 | . 1 Communications Jammed . | . . Distress Signals . | . . Times Spotted 11 | . 11 Peak Tracking Total 4 | . 4 Tactical Retreats . | . . Traps | -11 -10 ------- Run | Yrd Mat Traps Triggered 2 | . 2 Indirectly . | . . Trap Hack Attempts . | . . Triggered . | . . Disarmed . | . . Reprogrammed . | . . Reused . | . . Traps Extracted . | . . Installed . | . . Triggered . | . . Machines | -11 -10 ---------- Run | Yrd Mat Machines Disabled 4 | . 4 Max in Single Turn 1 | . 1 Machines Repaired . | . . Machines Dismantled . | . . Machines Sabotaged . | . . Overloaded Fab Kills . | . . Hacking | -11 -10 --------- Run | Yrd Mat Machines Accessed 3 | . 3 Terminals 3 | . 3 Fabricators . | . . Repair Stations . | . . Recycling Units . | . . Scanalyzers . | . . Garrison Access . | . . Total Hacks 7 | . 7 Successful 2 | . 2 Failed 5 | . 5 Catastrophic . | . . Database Lockouts . | . . Manual . | . . Terminals 7 | . 7 Fabricators . | . . Repair Stations . | . . Recycling Units . | . . Scanalyzers . | . . Garrison Access . | . . Terminal Hacks 2 | . 2 Security Status 1 | . 1 Zone Layout 1 | . 1 Fabricator Hacks . | . . Repair Station Hacks . | . . Recycling Unit Hacks . | . . Scanalyzer . | . . Garrison Access Hacks . | . . Unauthorized Hacks . | . . Terminals . | . . Fabricators . | . . Repair Stations . | . . Recycling Units . | . . Scanalyzers . | . . Garrison Access . | . . Data Cores Recovered . | . . Used . | . . Hacking Detections 3 | . 3 Full Trace Events 1 | . 1 Feedback Events . | . . Feedback Blocked . | . . Robot Schematics Acquired . | . . Robots Built . | . . Authchips . | . . Time . | . . Total Robot Build Rating . | . . Part Schematics Acquired . | . . Parts Built . | . . Authchips . | . . Time . | . . Total Part Build Rating . | . . Parts Repaired . | . . Time . | . . Parts Recycled . | . . Recycled Matter . | . . Retrieved Matter . | . . Retrieved Components . | . . Parts Scanalyzed . | . . Part Schematics Acquired . | . . Parts Damaged . | . . Bothacking | -11 -10 ------------ Run | Yrd Mat Used RIF Installer . | . . Robots Hacked . | . . Non-combat . | . . Combat . | . . Robot Hacks Applied . | . . Relay Couplers Released . | . . Fabnet Peak Effective % . | . . Robots Rewired . | . . Allies Hacked . | . . Hacks Repelled . | . . Allies | -11 -10 -------- Run | Yrd Mat Total Allies . | . . Largest Group . | . . Highest-Rated Group . | . . Highest-Rated Ally . | . . Total Orders . | . . Ally Attacks . | . . Total Damage . | . . Kills . | . . Allies Corrupted . | . . Allies Melted . | . . Intel | -11 -10 ------- Run | Yrd Mat Robot Analysis Total . | . . Derelict Logs Recovered . | . . Drone Launches . | . . Drone Recoveries . | . . Exploration | -11 -10 ------------- Run | Yrd Mat Turns Passed 474 | 55 419 Spaces Moved 347 | 57 290 Core 61 | 25 36 Treads . | . . Legs . | . . Wheels 162 | 32 130 Hover . | . . Flight 124 | . 124 Fastest Speed 37 | 50 37 Average Speed 90 | 86 91 Slowest Speed 520 | 150 520 Overloaded Moves . | . . Propulsion Burnouts . | . . Robots Hopped . | . . Cave-ins Triggered . | . . Exploration Rate (%) 19 | 3 36 Regions Visited 1 Branch Regions . Pre-discovered Areas . | . . Known Exits Taken . | . . Unknown Exits Taken 1 | 1 . Scrap Searched . | . . Spaces Dug . | . . Terrain Destroyed 73 | . 73 Melee . | . . Projectile . | . . AOE 73 | . 73 Terrain Rammed . | . . Walls Destroyed . | . . Machines Disabled . | . . Actions | -11 -10 --------- Run | Yrd Mat Total 428 | 60 368 Wait . | . . Move 346 | 56 290 Hop . | . . Pick Up 1 | . 1 Fast Attach 13 | 4 9 Attach 5 | . 5 Detach 5 | . 5 Swap . | . . Drop . | . . Fire 48 | . 48 Melee . | . . Ram 10 | . 10 Kick . | . . Crush . | . . Escape Stasis . | . . Rewire . | . . Trap . | . . Miscellaneous . | . . Route ------- -11/Scrapyard -10/Materials (discovered 2 exits: [*Mat x2]) History --------- Turn | Location | Event 2 | -11/Scrapyard | Met Revision 17 13 | -11/Scrapyard | Discovered new exit (range 16) 56 | -11/Scrapyard | Entered Materials 88 | -10/Materials | Discovered new exit (range 17) 300 | -10/Materials | Build established: Mutant 300 | -10/Materials | Discovered new exit (range 16) 336 | -10/Materials | Lost 4 parts (1p2n1w) 418 | -10/Materials | Core integrity fell below 50% 464 | -10/Materials | Core integrity fell below 20% 472 | -10/Materials | Lost 5 parts (1p2n1u1w) 475 | -10/Materials | Destroyed by G-34 Mercenary with Small Laser Last Messages --------------- 00450_ K-01 Serf collects debris. 00450_ Slammed into G-34 Mercenary. 00451_ G-34 Mercenary IFF system glitched. 00453_ K-01 Serf collects debris. 00453_ K-01 Serf cleans the Terminal. 00454_ Slammed into G-34 Mercenary. 00456_ K-01 Serf collects debris. 00457_ Slammed into G-34 Mercenary. 00459_ G-34 Mercenary IFF system glitched. 00460_ K-01 Serf collects debris. 00460_ K-01 Serf cleans the Terminal. 00461_ Slammed into G-34 Mercenary. 00464_ K-01 Serf collects debris. 00464_ Slammed into G-34 Mercenary. 00467_ K-01 Serf cleans the Terminal. 00468_ Slammed into G-34 Mercenary. 00470_ K-01 Serf cleans the Terminal. 00471_ Slammed into G-34 Mercenary. 00475_ K-01 Serf cleans the Terminal. 00475_ Slammed into G-34 Mercenary. Map ----- +----------------------------------------------------+ | ????????????????????????# | | ????????????????????????# | | ????????????????????????# """ """ | | ????????????????????????## # # """ """ | | ?????????????????????????## # ## """ """ | | ??????????????????????########### | | ?????????????????????? ## | | ????????????????????????"" """ # [ | | ????????????????????????"" """ + | | ????????????????????????"" """ # | | ?????????????????????? # ##"T" | | ??????????????????????########## ##""" | | ?????????????????????????????### "T" !! #?# | | ?????????????????????????????# !!! ### | | ?????????????????????????????# !! #### | | ?????????????????????????????# + | | ?????????????????????????????# #### | | ?????????????????????????????# ## ### | | ?????????????????????????????## ###### ### ### | | ????????? ##########????????# ######+# " | | ????????? #????############## # | | ????????? ###### # # | | ????????? # # """ T # # | | ?????????#### # """ k =# # " """ # | | ????????? + # """ %%% #% # """"""" # | | ????????? # # g@%%%%+ + """ " " # | | ????????? + ############## ############ ### | | ?????????" # #???????###### #??????????###?? | | ?????????" # #???????# #??????????????? | | ?????????" # #???????# #??????????????? | | ????????? # #???????# #??????????????? | | ????????? ######???????# ######??????????????? | | ?????????" "#?????????### #???????????????????? | | ?????????" T#?????????#"" #???????????????????? | | ?????????" "#?????????#T ###########?????????? | | ????????? ##?????????### + ?????????? | | ????????? #????????????# #""" ?????????? | | ????????? #????????????# #""" ?????????? | | ????????? #????????????# #""" ?????????? | | ????????? #????????????# + ?????????? | | ????????? #????????????# #""" ?????????? | | ????????? #??????????### # #""" ?????????? | | ????????? < #??????????# # #""" ?????????? | | ????????? #??????????#! !##### ?????????? | | ?????????####??????????##! !##???######?????????? | | ???????????????????????########??????????????????? | | ?????????????????????????????????????????????????? | | ?????????????????????????????????????????????????? | | ?????????????????????????????????????????????????? | | ?????????????????????????????????????????????????? | +----------------------------------------------------+ Best States ------------- Heat Dissipation 25 Energy Generation 10 Energy Capacity 250 Matter Stores 300 Matter Capacity 300 Sight Range 16 Terrain Scan Density 10 Armor Coverage 150 Evasion (%) 62 Item Schematics ----------------- None Robot Schematics ------------------ None Fabricated ------------ Nothing Alien Tech Used ----------------- None Achievements -------------- None Challenges ------------ None Game ------ Seed SegregatorShrapnelSheargun Manual? 0 Play Time 00:08:44 Cumulative 3.4 hours Start 2024.04.01 @ 02:16:12 End 2024.04.01 @ 02:23:17 Sessions 1 Manual Loads 0 Difficulty Rogue Special Mode None Game No. 5 Rogue 3 Adventurer 2 Explorer 0 Win Type - Total 0 Types 0/0/0/0/0/0/0/0/0 Lore% 3 Gallery% 9 Achievement% 10 Wizard Run 0 Options --------- Layout 1 ASCII 0 Keyboard 1 Movement Arrows Keybinds 0 Fullscreen 2 Font 24/Swanston Map View 50x35 Zoom Use 0% Tactical HUD 1 Map Filters NONE Filters NONE Steam 1 RUN: 4b29bf8b-8be7-4027-ac13-f297a771f170